fUSD/lending_fUSD_20251012
["ID","MTS","AMOUNT","RATE_DAILY","PERIOD"]
[390979241,1760259821842,-3885.07,0.00033561,120]
[390979242,1760259821871,-150.0,0.00033631,120]
[390979243,1760259821898,-173.0,0.000337,120]
[390979244,1760259821928,-150.0,0.00033768,120]
[390979245,1760259821956,-3001.47208072,0.000338,30]
[390979246,1760259821983,-152.0,0.000339,120]
[390979247,1760259822010,-500.0,0.00033939,60]
[390979248,1760259822040,-150.0,0.00033965,120]
[390979249,1760259822068,-4000.0,0.0003399,90]
[390979250,1760259822095,-4000.0,0.0003399,90]
[390979251,1760259822122,-4000.0,0.0003399,90]
[390979252,1760259822149,-581.87232936,0.0003399,90]
[390979253,1760259822177,-8000.0,0.00034,120]
[390979254,1760259822211,-30000.0,0.00034,120]
[390979255,1760259822246,-300.0,0.00034,120]
[390979256,1760259822275,-1000.0,0.00034,60]
[390979257,1760259822302,-2000.0,0.00034,34]
[390979258,1760259822330,-200.0,0.00034,120]
[390979259,1760259822356,-173.9784693,0.00034,30]
[390979260,1760259822384,-763.28139929,0.00034,120]
[390979261,1760259822412,-6421.93,0.00034,30]
[390979262,1760259822441,-150.0,0.0003412,120]
[390979263,1760259822469,-150.0,0.00034139,120]
[390979264,1760259822497,-3885.07,0.00034246,120]
[390979265,1760259822524,-173.0,0.000344,120]
[390979266,1760259822985,-500.0,0.00034437,120]
[390979267,1760259823013,-323.36526597,0.000345,120]
[390979268,1760259823039,-203.93859554,0.00034542,120]
[390979269,1760259823064,-211.25504395,0.00034542,120]
[390979270,1760259823091,-150.0,0.00034634,120]
[390979271,1760259823118,-150.0,0.00034672,120]
[390979272,1760259823146,-500.0,0.00034702,120]
[390979273,1760259823172,-500.0,0.00034702,120]
[390979274,1760259823197,-500.0,0.00034702,120]
[390979275,1760259823222,-500.0,0.00034702,120]
[390979276,1760259823251,-500.0,0.00034702,120]
[390979277,1760259823281,-500.0,0.00034702,120]
[390979278,1760259823310,-500.0,0.00034702,120]
[390979279,1760259823336,-500.0,0.00034702,120]
[390979280,1760259823363,-157.0,0.00034702,120]
[390979281,1760259823392,-1844342.07796319,0.000348,120]
[390979282,1760259823426,-72107.40435028,0.000348,120]
[390979283,1760259823455,-500.0,0.00034821,60]
[390979284,1760259823482,-1485.44357153,0.0003485,60]
[390979285,1760259823510,-400.0,0.0003489,120]
[390979286,1760259823536,-152.0,0.000349,120]
[390979287,1760259823562,-221.7574596,0.000349,120]
[390979288,1760259823589,-3885.07,0.00034931,120]
[390979289,1760259823614,-753.12927961,0.0003495,120]
[390979290,1760259823642,-1482.35657,0.00035,120]
[390979291,1760259823668,-50000.0,0.00035,120]
[390979292,1760259823694,-300.0,0.00035,120]
[390979293,1760259823720,-81064.96012738,0.00035,120]
[390979294,1760259823746,-1000.0,0.00035,60]
[390979295,1760259823772,-200.0,0.00035,120]
[390979296,1760259823798,-915.0618967,0.00035,120]
[390979297,1760259823824,-703.41716353,0.00035,120]
[390979298,1760259823851,-750.0,0.00035,120]
[390979299,1760259823879,-180.8,0.00035,120]
[390979300,1760259823910,-425.47,0.00035,120]
[390979301,1760259823936,-262.4,0.00035,120]
[390979302,1760259823965,-485.71,0.00035,120]
[390979303,1760259823992,-178.72,0.00035,120]
[390979304,1760259824019,-302.14,0.00035,120]
[390979305,1760259824045,-576.07,0.00035,120]
[390979306,1760259824071,-392.71,0.00035,120]
[390979307,1760259824098,-1910.87,0.00035,120]
[390979308,1760259824123,-251.28,0.00035,120]
[390979309,1760259824149,-262.17,0.00035,120]
[390979310,1760259824177,-463.57,0.00035,120]
[390979311,1760259824204,-499.98,0.00035,120]
[390979312,1760259824232,-223.68,0.00035,120]
[390979313,1760259824260,-541.58,0.00035,120]
[390979314,1760259824288,-551.37,0.00035,120]
[390979315,1760259824315,-174.79,0.00035,120]
[390979316,1760259824341,-401.92,0.00035,120]
[390979317,1760259824368,-1142.14,0.00035,120]
[390979318,1760259824395,-881.56,0.00035,120]
[390979319,1760259824421,-948.74,0.00035,120]
[390979320,1760259824447,-567.91,0.00035,120]
[390979321,1760259824474,-330.23,0.00035,120]
[390979322,1760259824501,-434.54,0.00035,120]
[390979323,1760259824527,-150.98,0.00035,120]
[390979324,1760259824554,-428.21,0.00035,120]
[390979325,1760259824580,-154.84,0.00035,120]
[390979326,1760259824607,-374.93,0.00035,120]
[390979327,1760259824633,-152.2,0.00035,120]
[390979328,1760259824659,-224.74,0.00035,120]
[390979329,1760259824685,-153.55,0.00035,120]
[390979330,1760259824711,-173.3,0.00035,120]
[390979331,1760259824737,-1385.76,0.00035,120]
[390979332,1760259824777,-4571.38,0.00035,120]
[390979333,1760259824804,-499.98,0.00035,120]
[390979334,1760259824832,-441.02,0.00035,120]
[390979335,1760259824860,-247.41,0.00035,120]
[390979336,1760259824893,-443.8334342,0.00035,120]
[390979337,1760259842234,-1714.6265658,0.00035,120]
[390979338,1760259842264,-1187.57,0.00035,120]
[390979339,1760259842295,-9929.77,0.00035,120]
[390979340,1760259842325,-15000.0,0.00035,120]
[390979341,1760259842354,-22500.0,0.00035,120]
[390979342,1760259842394,-15000.0,0.00035,120]
[390979343,1760259842436,-10000.0,0.00035,120]
[390979344,1760259842464,-12792.0,0.00035,120]
[390979345,1760259842490,-15000.0,0.0003505,120]
[390979346,1760259842516,-6209.04,0.0003505,120]
[390979347,1760259842541,-22500.0,0.00035062,120]
[390979348,1760259842569,-173.0,0.000351,120]
[390979349,1760259842595,-15000.0,0.000351,120]
[390979350,1760259842621,-150.0,0.00035104,120]
[390979351,1760259842647,-22500.0,0.00035125,120]
[390979352,1760259842676,-2402.23,0.0003515,120]
[390979353,1760259842702,-9681.82,0.00035167,120]
[390979354,1760259842727,-22500.0,0.00035188,120]
[390979355,1760259842754,-18590.68,0.0003525,120]
[390979356,1760259842780,-1207.05737,0.000353,120]
[390979357,1760259842806,-19985.31437637,0.00035421,120]
[390979358,1760259842834,-150.0,0.00035428,120]
[390979359,1760259842861,-150.0,0.00035444,120]
[390979360,1760259842888,-218.92216704,0.000355,120]
[390979361,1760259843300,-500.0,0.00035546,120]
[390979362,1760259843330,-220.42712106,0.00035615,30]
[390979363,1760259843360,-3885.07,0.00035616,120]
[390979364,1760259843389,-2519.34,0.00035639,30]
[390979365,1760259843419,-173.0,0.000357,120]
[390979366,1760259843446,-500.0,0.00035703,60]
[390979367,1760259843474,-4752.33008826,0.00035745,120]
[390979368,1760259843502,-1338.08587,0.00035888,30]
[390979369,1760259843529,-4253.44282565,0.000359,30]
[390979370,1760259843557,-152.0,0.000359,120]
[390979371,1760259843584,-50000.0,0.00036,120]
[390979372,1760259843610,-300.0,0.00036,120]
[390979373,1760259843635,-2000.8,0.00036,36]
[390979374,1760259843663,-200.0,0.00036,120]
[390979375,1760259843689,-6421.93,0.00036,30]
[390979376,1760259843716,-1338.08587,0.00036088,30]
[390979377,1760259843744,-150.0,0.0003609,120]
[390979378,1760259843771,-150.0,0.00036242,120]
[390979379,1760259843798,-1338.08587,0.00036288,30]
[390979380,1760259843826,-3885.07,0.00036301,120]
[390979381,1760259843854,-173.0,0.000364,120]
[390979382,1760259843884,-150.0,0.00036466,120]
[390979383,1760259843912,-1338.08587,0.00036488,30]
[390979384,1760259843940,-500.0,0.00036585,60]
[390979385,1760259843966,-500.0,0.00036655,120]
[390979386,1760259843993,-1338.08587,0.00036688,30]
[390979387,1760259844019,-565.4446666,0.000367,120]
[390979388,1760259844046,-150.0,0.00036746,120]
[390979389,1760259844072,-445.0,0.00036786,90]
[390979390,1760259844098,-1840.70646988,0.000368,60]
[390979391,1760259844125,-210000.000001,0.0003688,30]
[390979392,1760259844151,-1338.08587,0.00036888,30]
[390979393,1760259844181,-152.0,0.000369,120]
[390979394,1760259844212,-150.0,0.00036933,30]
[390979395,1760259844245,-1438.74538745,0.00036933,30]
[390979396,1760259844278,-184.9933896,0.00036933,30]
[390979397,1760259844312,-150.0,0.00036933,30]
[390979398,1760259844345,-15632.89801526,0.00036933,30]
[390979399,1760259844380,-150.0,0.00036933,30]
[390979400,1760259844418,-1999.61525095,0.00036933,30]
[390979401,1760259844450,-150.0,0.00036933,30]
[390979402,1760259844483,-1400.37481031,0.00036933,30]
[390979403,1760259844515,-3885.07,0.00036986,120]
[390979404,1760259844545,-445.0,0.00036996,90]
[390979405,1760259844574,-50000.0,0.00037,120]
[390979406,1760259844602,-300.0,0.00037,120]
[390979407,1760259844630,-69725.93077254,0.00037,120]
[390979408,1760259844662,-333.10642727,0.00037,120]
[390979409,1760259844689,-6409.85398391,0.00037,30]
[390979410,1760259844717,-5360.0,0.00037,117]
[390979411,1760259844745,-36401.0,0.00037,120]
[390979412,1760259844773,-869.78611063,0.00037,120]
[390979413,1760259844801,-1338.08587,0.00037088,30]
[390979414,1760259844829,-150.0,0.00037093,120]
[390979415,1760259844856,-173.0,0.000371,120]
[390979416,1760259844884,-1000.0,0.00037239,90]
[390979417,1760259844915,-1338.08587,0.00037288,30]
[390979418,1760259844941,-1444.0,0.0003737,120]
[390979419,1760259844976,-150.0,0.00037404,120]
[390979420,1760259845017,-150.0,0.00037463,120]
[390979421,1760259845048,-500.0,0.00037467,60]
[390979422,1760259845077,-1338.08587,0.00037488,30]
[390979423,1760259845109,-1207.05737,0.000375,120]
[390979424,1760259845141,-3885.07,0.00037671,120]
[390979425,1760259845173,-150.0,0.00037677,120]
[390979426,1760259845203,-1338.08587,0.00037688,30]
[390979427,1760259845233,-500.0,0.00037765,120]
[390979428,1760259845262,-173.0,0.000378,120]
[390979429,1760259845289,-709.86,0.00037808,60]
[390979430,1760259845317,-150.0,0.00037833,120]
[390979431,1760259845343,-709.87,0.00037839,80]
[390979432,1760259845369,-709.87,0.00037869,100]
[390979433,1760259845396,-555.0,0.00037869,120]
[390979434,1760259845424,-1338.08587,0.00037888,30]
[390979435,1760259845451,-10000.0,0.00037888,30]
[390979436,1760259845478,-100000.0,0.000379,120]
[390979437,1760259845505,-709.86,0.000379,120]
[390979438,1760259845531,-152.0,0.000379,120]
[390979439,1760259845560,-150.0,0.00037938,120]
[390979440,1760259845588,-448.0,0.00037986,90]
[390979441,1760259845622,-765.58359343,0.00037999,120]
[390979442,1760259845650,-1850.0,0.00038,120]
[390979443,1760259845679,-50350.5677929,0.00038,120]
[390979444,1760259845707,-194579.94411855,0.00038,120]
[390979445,1760259845734,-5000.0,0.00038,60]
[390979446,1760259845760,-1102.0705059,0.00038,120]
[390979447,1760259845794,-150000.0,0.00038,30]
[390979448,1760259845820,-500000.0,0.00038,120]
[390979449,1760259845849,-1864.09957215,0.00038,120]
[390979450,1760259845879,-272.32193042,0.00038,120]
[390979451,1760259845909,-62120.0,0.00038,120]
[390979452,1760259845937,-50000.0,0.00038,120]
[390979453,1760259845967,-300.0,0.00038,120]
[390979454,1760259845994,-1074.0,0.00038,120]
[390979455,1760259846022,-200.0,0.00038,120]
[390979456,1760259846052,-6386.59,0.00038,120]
[390979457,1760259846081,-2000.0,0.00038,120]
[390979458,1760259846111,-20000.0,0.00038,120]
[390979459,1760259846458,-23485.59,0.00038,120]
[390979460,1760259846487,-31840.30606823,0.00038,30]
[390979461,1760259846515,-2500.0,0.00038,90]
[390979462,1760259846541,-8955.78,0.00038,120]
[390979463,1760259846569,-1338.08587,0.00038088,30]
[390979464,1760259846597,-242.98603291,0.00038094,30]
[390979465,1760259846625,-242.98603291,0.00038096,30]
[390979466,1760259846653,-571.41467396,0.00038098,30]
[390979467,1760259846682,-387.99349656,0.00038099,30]
[390979468,1760259846712,-387.99349656,0.00038102,30]
[390979469,1760259846741,-1032.68603576,0.00038106,30]
[390979470,1760259846770,-56296.54481978,0.00038108,30]
[390979471,1760259846798,-56296.54481978,0.00038108,30]
[390979472,1760259846826,-2448.92003141,0.00038114,30]
[390979473,1760259846853,-60085.72826462,0.00038115,30]
[390979474,1760259846880,-1523.980322,0.00038118,30]
[390979475,1760259846912,-13494.04915288,0.00038119,30]
[390979476,1760259846940,-809.95344317,0.00038121,30]
[390979477,1760259846968,-56296.54481978,0.00038125,30]
[390979478,1760259846995,-809.95344317,0.00038125,30]
[390979479,1760259847024,-3390.99480369,0.00038127,30]
[390979480,1760259847052,-1032.68603576,0.00038129,30]
[390979481,1760259847079,-13494.04915288,0.00038129,30]
[390979482,1760259847105,-387.99349656,0.00038129,30]
[390979483,1760259847132,-3390.99480369,0.00038132,30]
[390979484,1760259847159,-10495.37156336,0.00038132,30]
[390979485,1760259847185,-791.72596075,0.00038134,30]
[390979486,1760259847212,-36844.96584147,0.00038137,30]
[390979487,1760259847238,-374.8009,0.00038137,30]
[390979488,1760259847265,-3390.99480369,0.0003814,30]
[390979489,1760259847292,-36844.96584147,0.0003814,30]
[390979490,1760259847318,-13494.04915288,0.00038141,30]
[390979491,1760259847344,-387.99349656,0.00038141,30]
[390979492,1760259847369,-387.99349656,0.00038144,30]
[390979493,1760259847395,-4897.84006288,0.00038147,30]
[390979494,1760259847422,-10495.37156336,0.0003815,30]
[390979495,1760259847449,-571.41467396,0.00038154,30]
[390979496,1760259847475,-791.72596075,0.00038162,30]
[390979497,1760259847500,-194.180171,0.00038163,30]
[390979498,1760259847524,-431.97516967,0.00038163,30]
[390979499,1760259847550,-431.97516967,0.00038164,30]
[390979500,1760259847576,-791.23212082,0.00038166,30]
[390979501,1760259847602,-60085.72826462,0.0003817,30]
[390979502,1760259847628,-2448.92003141,0.00038171,30]
[390979503,1760259847653,-93466.68841171,0.00038173,30]
[390979504,1760259847680,-791.23212082,0.00038177,30]
[390979505,1760259847706,-1032.68603576,0.00038179,30]
[390979506,1760259847732,-809.95344317,0.00038179,30]
[390979507,1760259847757,-13494.04915288,0.0003818,30]
[390979508,1760259847783,-1523.980322,0.00038181,30]
[390979509,1760259847807,-3390.99480369,0.00038182,30]
[390979510,1760259847832,-431.97516967,0.00038182,30]
[390979511,1760259847858,-571.41467396,0.00038194,30]
[390979512,1760259847884,-431.97516967,0.00038195,30]
[390979513,1760259847914,-20140.37377529,0.000382,120]
[390979514,1760259847941,-56296.54481978,0.00038203,30]
[390979515,1760259847969,-791.23212082,0.00038203,30]
[390979516,1760259847996,-355.11451727,0.00038205,30]
[390979517,1760259848024,-10495.37156336,0.00038205,30]
[390979518,1760259848055,-13494.04915288,0.00038208,30]
[390979519,1760259848084,-1327.73918883,0.00038208,30]
[390979520,1760259848114,-4897.84006288,0.00038209,30]
[390979521,1760259848142,-60085.72826462,0.00038209,30]
[390979522,1760259848169,-1041.36871264,0.00038209,30]
[390979523,1760259848197,-60085.72826462,0.00038209,30]
[390979524,1760259848225,-791.72596075,0.00038209,30]
[390979525,1760259848253,-36844.96584147,0.00038213,30]
[390979526,1760259848282,-1523.980322,0.00038216,30]
[390979527,1760259848308,-1041.36871264,0.00038216,30]
[390979528,1760259848336,-1032.68603576,0.0003822,30]
[390979529,1760259848364,-4897.84006288,0.0003822,30]
[390979530,1760259848393,-242.98603291,0.00038222,30]
[390979531,1760259848423,-93466.68841171,0.00038223,30]
[390979532,1760259848453,-3390.99480369,0.00038228,30]
[390979533,1760259848482,-1327.73918883,0.00038229,30]
[390979534,1760259848510,-60085.72826462,0.00038231,30]
[390979535,1760259848536,-1327.73918883,0.00038232,30]
[390979536,1760259848563,-1523.980322,0.00038234,30]
[390979537,1760259848590,-2448.92003141,0.00038234,30]
[390979538,1760259848619,-791.72596075,0.00038234,30]
[390979539,1760259848646,-387.99349656,0.00038234,30]
[390979540,1760259848674,-242.98603291,0.00038242,30]
[390979541,1760259848701,-791.72596075,0.00038244,30]
[390979542,1760259848729,-56296.54481978,0.00038245,30]
[390979543,1760259848757,-56296.54481978,0.00038245,30]
[390979544,1760259848784,-1041.36871264,0.00038248,30]
[390979545,1760259848810,-809.95344317,0.00038249,30]
[390979546,1760259848837,-60085.72826462,0.0003825,30]
[390979547,1760259848864,-10495.37156336,0.00038251,30]
[390979548,1760259848896,-791.23212082,0.00038256,30]
[390979549,1760259848924,-355.11451727,0.00038257,30]
[390979550,1760259848952,-809.95344317,0.0003826,30]
[390979551,1760259848981,-10495.37156336,0.00038261,30]
[390979552,1760259849011,-242.98603291,0.00038262,30]
[390979553,1760259849039,-2448.92003141,0.00038265,30]
[390979554,1760259849067,-36844.96584147,0.00038266,30]
[390979555,1760259849097,-1032.68603576,0.00038268,30]
[390979556,1760259849126,-1523.980322,0.0003827,30]
[390979557,1760259849154,-36844.96584147,0.0003827,30]
[390979558,1760259849184,-355.11451727,0.00038271,30]
[390979559,1760259849215,-93466.68841171,0.00038277,30]
[390979560,1760259849244,-194.180171,0.00038278,30]
[390979561,1760259849602,-431.97516967,0.0003828,30]
[390979562,1760259849632,-809.95344317,0.00038283,30]
[390979563,1760259849662,-1041.36871264,0.00038284,30]
[390979564,1760259849690,-194.180171,0.00038286,30]
[390979565,1760259849718,-1338.08587,0.00038288,30]
[390979566,1760259849745,-431.97516967,0.00038288,30]
[390979567,1760259849774,-1041.36871264,0.00038289,30]
[390979568,1760259849802,-791.23212082,0.00038289,30]
[390979569,1760259849829,-355.11451727,0.00038289,30]
[390979570,1760259849856,-571.41467396,0.00038289,30]
[390979571,1760259849883,-2448.92003141,0.00038289,30]
[390979572,1760259849916,-10495.37156336,0.00038293,30]
[390979573,1760259849944,-809.95344317,0.00038295,30]
[390979574,1760259849970,-1327.73918883,0.00038295,30]
[390979575,1760259849997,-194.180171,0.00038298,30]
[390979576,1760259850024,-1032.68603576,0.000383,30]
[390979577,1760259850051,-93466.68841171,0.00038304,30]
[390979578,1760259850077,-4897.84006288,0.00038308,30]
[390979579,1760259850104,-387.99349656,0.0003831,30]
[390979580,1760259850130,-355.11451727,0.00038311,30]
[390979581,1760259850156,-194.180171,0.00038311,30]
[390979582,1760259850185,-242.98603291,0.00038318,30]
[390979583,1760259850213,-56296.54481978,0.00038322,30]
[390979584,1760259850240,-4897.84006288,0.00038322,30]
[390979585,1760259850268,-36844.96584147,0.00038325,30]
[390979586,1760259850294,-13494.04915288,0.00038326,30]
[390979587,1760259850321,-3390.99480369,0.00038328,30]
[390979588,1760259850350,-93466.68841171,0.00038328,30]
[390979589,1760259850377,-1523.980322,0.00038333,30]
[390979590,1760259850405,-194.180171,0.00038335,30]
[390979591,1760259850435,-571.41467396,0.00038335,30]
[390979592,1760259850464,-791.23212082,0.00038336,30]
[390979593,1760259850492,-355.11451727,0.00038336,30]
[390979594,1760259850519,-571.41467396,0.0003834,30]
[390979595,1760259850545,-1523.980322,0.00038343,30]
[390979596,1760259850571,-60085.72826462,0.00038344,30]
[390979597,1760259850597,-500.0,0.0003835,60]
[390979598,1760259850623,-1032.68603576,0.00038351,30]
[390979599,1760259850649,-791.72596075,0.00038353,30]
[390979600,1760259850677,-10495.37156336,0.00038353,30]
[390979601,1760259850704,-2448.92003141,0.00038354,30]
[390979602,1760259850731,-194.180171,0.00038354,30]
[390979603,1760259850758,-220.0,0.00038355,30]
[390979604,1760259850785,-1327.73918883,0.00038356,30]
[390979605,1760259850811,-1041.36871264,0.00038356,30]
[390979606,1760259850838,-3885.07,0.00038356,120]
[390979607,1760259850864,-242.98603291,0.0003836,30]
[390979608,1760259850894,-4897.84006288,0.00038362,30]
[390979609,1760259850921,-4897.84006288,0.00038364,30]
[390979610,1760259850948,-93466.68841171,0.00038364,30]
[390979611,1760259850974,-13494.04915288,0.00038365,30]
[390979612,1760259851000,-3390.99480369,0.00038366,30]
[390979613,1760259851027,-2448.92003141,0.00038368,30]
[390979614,1760259851055,-36844.96584147,0.00038368,30]
[390979615,1760259851081,-1327.73918883,0.00038371,30]
[390979616,1760259851107,-1041.36871264,0.00038373,30]
[390979617,1760259851134,-571.41467396,0.00038373,30]
[390979618,1760259851162,-431.97516967,0.00038377,30]
[390979619,1760259851190,-791.72596075,0.00038377,30]
[390979620,1760259851219,-44469.8369222,0.0003838,120]
[390979622,1760259858926,-300.0,0.00032299,57]
[390979623,1760259858980,-285.869,0.0003724,30]
[390979624,1760259859013,-56195.82411622,0.0003838,120]
[390979625,1760259859042,-791.23212082,0.00038383,30]
[390979626,1760259859069,-355.11451727,0.00038384,30]
[390979627,1760259859096,-1327.73918883,0.00038398,30]
[390979628,1760259859125,-93466.68841171,0.00038399,30]
[390979629,1760259859153,-173.0,0.000384,120]
[390979630,1760259859182,-151.0,0.00038487,30]
[390979631,1760259859209,-311.1,0.00038487,30]
[390979632,1760259859237,-220.0,0.00038487,30]
[390979633,1760259859265,-1338.08587,0.00038488,30]
[390979634,1760259859292,-2466.66312002,0.000385,120]
[390979635,1760259859318,-50860.09778128,0.000385,120]
[390979636,1760259859345,-520.0,0.00038629,30]
[390979637,1760259859371,-160.0,0.00038629,30]
[390979638,1760259859400,-151.0,0.00038629,30]
[390979639,1760259859428,-151.0,0.00038629,30]
[390979640,1760259859455,-600.0,0.00038629,30]
[390979641,1760259859483,-6888.0,0.00038629,30]
[390979642,1760259859508,-151.0,0.00038629,30]
[390979643,1760259859535,-539.24,0.00038629,30]
[390979644,1760259859562,-160.0,0.00038629,30]
[390979645,1760259859589,-500.0,0.00038629,30]
[390979646,1760259859616,-151.0,0.00038629,30]
[390979647,1760259859642,-600.0,0.00038629,30]
[390979648,1760259859669,-7142.856,0.00038629,30]
[390979649,1760259859695,-156.587,0.00038629,30]
[390979650,1760259859722,-151.0,0.00038629,30]
[390979651,1760259859748,-559.19188,0.00038629,30]
[390979652,1760259859775,-160.0,0.00038629,30]
[390979653,1760259859802,-600.0,0.00038629,30]
[390979654,1760259859829,-151.0,0.00038629,30]
[390979655,1760259860335,-162.380719,0.00038629,30]
[390979656,1760259860362,-579.88197956,0.00038629,30]
[390979657,1760259860390,-7407.141672,0.00038629,30]
[390979658,1760259860416,-160.0,0.00038629,30]
[390979659,1760259860445,-600.0,0.00038629,30]
[390979660,1760259860472,-151.0,0.00038629,30]
[390979661,1760259860499,-168.3888056,0.00038629,30]
[390979662,1760259860526,-151.0,0.00038629,30]
[390979663,1760259860553,-500.0,0.00038629,30]
[390979664,1760259860580,-601.3376128,0.00038629,30]
[390979665,1760259860608,-7681.20591386,0.00038629,30]
[390979666,1760259860635,-160.0,0.00038629,30]
[390979667,1760259860662,-600.0,0.00038629,30]
[390979668,1760259860690,-151.0,0.00038629,30]
[390979669,1760259860723,-174.61919141,0.00038629,30]
[390979670,1760259860752,-151.0,0.00038629,30]
[390979671,1760259860781,-500.0,0.00038629,30]
[390979672,1760259860811,-623.58710448,0.00038629,30]
[390979673,1760259860841,-7965.41053268,0.00038629,30]
[390979674,1760259860869,-160.47175024,0.00038629,30]
[390979675,1760259860900,-181.08010149,0.00038629,30]
[390979676,1760259860930,-600.0,0.00038629,30]
[390979677,1760259860961,-151.0,0.00038629,30]
[390979678,1760259860990,-151.0,0.00038629,30]
[390979679,1760259861020,-500.0,0.00038629,30]
[390979680,1760259861049,-646.65982734,0.00038629,30]
[390979681,1760259861079,-8260.13072239,0.00038629,30]
[390979682,1760259861107,-174.89021389,0.00038629,30]
[390979683,1760259861134,-600.0,0.00038629,30]
[390979684,1760259861164,-151.0,0.00038629,30]
[390979685,1760259861192,-151.0,0.00038629,30]
[390979686,1760259861219,-500.0,0.00038629,30]
[390979687,1760259861248,-8565.75555911,0.00038629,30]
[390979688,1760259861277,-600.0,0.00038629,30]
[390979689,1760259861305,-151.5677398,0.00038629,30]
[390979690,1760259861336,-500.0,0.00038629,30]
[390979691,1760259861367,-500.0,0.00038629,30]
[390979692,1760259861395,-600.0,0.00038629,30]
[390979693,1760259861427,-300.0,0.00038629,30]
[390979694,1760259861456,-600.0,0.00038629,30]
[390979695,1760259861484,-300.0,0.00038629,30]
[390979696,1760259861514,-151.0,0.00038629,30]
[390979697,1760259861547,-300.0,0.00038629,30]
[390979698,1760259861576,-300.0,0.00038629,30]
[390979699,1760259861605,-500.0,0.00038629,30]
[390979700,1760259861635,-301.84518884,0.00038629,30]
[390979701,1760259861663,-500.0,0.00038629,30]
[390979702,1760259861693,-500.0,0.00038629,30]
[390979703,1760259861722,-500.0,0.00038629,30]
[390979704,1760259861750,-500.0,0.00038629,30]
[390979705,1760259861778,-500.0,0.00038629,30]
[390979706,1760259861805,-518.5,0.00038629,30]
[390979707,1760259861836,-500.0,0.00038629,30]
[390979708,1760259861865,-500.0,0.00038629,30]
[390979709,1760259861894,-500.0,0.00038629,30]
[390979710,1760259861921,-537.6845,0.00038629,30]
[390979711,1760259861949,-500.0,0.00038629,30]
[390979712,1760259861978,-500.0,0.00038629,30]
[390979713,1760259862006,-500.0,0.00038629,30]
[390979714,1760259862034,-557.5788265,0.00038629,30]
[390979715,1760259862063,-500.0,0.00038629,30]
[390979716,1760259862092,-500.0,0.00038629,30]
[390979717,1760259862122,-500.0,0.00038629,30]
[390979718,1760259862149,-578.20924308,0.00038629,30]
[390979719,1760259862177,-500.0,0.00038629,30]
[390979720,1760259862207,-500.0,0.00038629,30]
[390979721,1760259862236,-500.0,0.00038629,30]
[390979722,1760259862264,-599.60298507,0.00038629,30]
[390979723,1760259862293,-500.0,0.00038629,30]
[390979724,1760259862321,-500.0,0.00038629,30]
[390979725,1760259862348,-624.61657395,0.00038629,30]
[390979726,1760259862375,-500.0,0.00038629,30]
[390979727,1760259862411,-500.0,0.00038629,30]
[390979728,1760259862446,-1000.0,0.00038629,30]
[390979729,1760259862480,-1000.0,0.00038629,30]
[390979730,1760259862513,-1000.0,0.00038629,30]
[390979731,1760259862546,-1000.0,0.00038629,30]
[390979732,1760259862579,-1000.0,0.00038629,30]
[390979733,1760259862612,-1000.0,0.00038629,30]
[390979734,1760259862646,-1000.0,0.00038629,30]
[390979735,1760259862680,-1000.0,0.00038629,30]
[390979736,1760259862714,-1000.0,0.00038629,30]
[390979737,1760259862748,-1000.0,0.00038629,30]
[390979738,1760259862791,-200.0,0.00038629,30]
[390979739,1760259862830,-1000.0,0.00038629,30]
[390979740,1760259862865,-1000.0,0.00038629,30]
[390979741,1760259862905,-1000.0,0.00038629,30]